bitfinex/quotes_ETHUSD_20241215
["timestamp","ask_amount","ask_price","bid_price","bid_amount"]
[1734306635471,0.05033493,3963.8,3962.9,0.07880396]
[1734306635812,0.05033493,3963.8,3962.8,3.07880361]
[1734306636129,0.05033493,3963.8,3963.2,2.5232]
[1734306636673,0.05033493,3963.8,3963.1,3.55]
[1734306636982,0.05033493,3963.8,3962.9,0.55]
[1734306637220,0.26331824,3963.9,3963.3,0.55]
[1734306637419,0.05041257,3963.8,3963.3,0.55]
[1734306637946,0.7903,3964.1,3963.3,0.55]
[1734306638462,0.05053404,3964.0,3963.4,0.55]
[1734306639051,0.05053404,3964.0,3963.7,0.55]
[1734306639249,0.7903,3964.1,3963.7,0.55]
[1734306639456,0.7903,3964.1,3963.7,3.07284]
[1734306639918,0.7903,3964.1,3963.7,0.55]
[1734306640129,0.7903,3964.1,3963.6,2.52295]
[1734306640354,0.7903,3964.1,3963.8,0.55]
[1734306641937,0.7903,3964.1,3963.4,0.8298]
[1734306642246,0.7903,3964.1,3963.5,0.55]
[1734306642406,0.7903,3964.1,3963.5,3.55]
[1734306642610,0.04909981,3964.0,3963.5,3.55]
[1734306642810,0.04909981,3964.0,3963.5,0.55]
[1734306643041,0.04909981,3964.0,3963.3,3.55]
[1734306643256,0.04909981,3964.0,3963.5,0.55]
[1734306644018,0.8289,3964.7,3963.9,3.55]
[1734306644316,0.04752213,3964.6,3963.9,3.55]
[1734306644832,0.04752213,3964.6,3963.9,0.55]
[1734306644977,0.04752213,3964.6,3964.3,0.55]
[1734306645176,0.8289,3964.7,3964.3,0.55]
[1734306647341,0.00305697,3964.8,3963.8,0.7688]
[1734306647618,0.00305697,3964.8,3964.0,2.52268]
[1734306647788,0.00305697,3964.8,3964.1,3.0]
[1734306647991,0.04800456,3964.7,3964.1,3.0]
[1734306648516,0.04800456,3964.7,3964.2,0.55]
[1734306648831,0.00305697,3964.8,3964.2,0.55]
[1734306649052,0.00305697,3964.8,3963.9,3.55]
[1734306649535,0.04800456,3964.7,3964.1,0.55]
[1734306652722,0.04817406,3964.6,3964.1,0.55]
[1734306652906,0.00106153,3964.8,3964.1,0.55]
[1734306653119,0.04659064,3964.7,3964.1,0.55]
[1734306653322,0.00106153,3964.8,3964.1,3.55]
[1734306653538,0.04659064,3964.7,3964.1,3.55]
[1734306653836,0.04659064,3964.7,3963.9,0.55]
[1734306654007,0.04659064,3964.7,3964.3,0.55]
[1734306654536,0.00106153,3964.8,3964.3,0.55]
[1734306654902,0.0465596,3964.7,3964.3,0.55]
[1734306655097,0.00106153,3964.8,3964.3,0.55]
[1734306655417,0.0465596,3964.7,3964.3,0.55]
[1734306655819,0.00106153,3964.8,3964.3,3.0725]
[1734306656054,0.00106153,3964.8,3964.3,2.52245]
[1734306656232,0.00106153,3964.8,3964.4,0.55]
[1734306656938,0.04671997,3964.7,3964.4,0.55]
[1734306657663,0.04671997,3964.7,3964.4,3.07243]
[1734306657873,0.00106153,3964.8,3964.5,2.52236]
[1734306658039,0.00106153,3964.8,3964.4,0.55]
[1734306658238,0.96944048,3965.0,3964.6,3.0]
[1734306658455,0.96944048,3965.0,3964.7,0.62876559]
[1734306658646,0.96944048,3965.0,3964.7,0.55]
[1734306659357,0.96944048,3965.0,3964.9,0.55]
[1734306659956,0.96944048,3965.0,3964.6,3.07228]
[1734306660170,0.96944048,3965.0,3964.7,0.07876547]
[1734306660342,0.96944048,3965.0,3964.8,2.60093547]
[1734306660671,0.96944048,3965.0,3964.9,0.62876547]
[1734306661054,0.96944048,3965.0,3964.9,3.15089547]
[1734306662070,0.96944048,3965.0,3964.9,7.32017724]
[1734306662250,0.96944048,3965.0,3964.9,7.65357643]
[1734306662630,0.00530232,3965.7,3965.6,3.55]
[1734306662864,0.00530232,3965.7,3965.6,5.1283389]
[1734306663639,0.00530232,3965.7,3965.6,0.62874394]
[1734306663976,0.00530232,3965.7,3965.6,0.62874412]
[1734306664949,0.00530232,3965.7,3965.6,3.62874412]
[1734306667788,0.00530232,3965.7,3965.6,0.07874412]
[1734306667937,0.00530232,3965.7,3964.8,2.52219]
[1734306668139,0.03929782,3965.7,3964.9,0.07874674]
[1734306668401,0.03929782,3965.7,3965.0,0.07874674]
[1734306668402,0.00530232,3965.7,3965.0,0.07874674]
[1734306668697,0.00530232,3965.7,3965.6,3.0]
[1734306668860,0.00530232,3965.7,3965.6,3.07874674]
[1734306669239,0.00530232,3965.7,3965.6,13.25004674]
[1734306669889,0.00530232,3965.7,3965.6,0.62874674]
[1734306670100,0.00530232,3965.7,3965.6,3.62874197]
[1734306670398,0.00530232,3965.7,3965.6,6.15042197]
[1734306671846,0.00530232,3965.7,3965.6,6.07168]
[1734306672122,0.00530232,3965.7,3965.6,6.42848221]
[1734306672291,0.00530232,3965.7,3965.6,6.50722656]
[1734306672873,0.00530232,3965.7,3965.6,6.15042435]
[1734306673123,0.00530232,3965.7,3965.6,3.62874435]
[1734306673289,0.00530232,3965.7,3965.6,0.62874435]
[1734306674961,0.00530232,3965.7,3965.6,0.55]
[1734306675166,0.00530232,3965.7,3965.6,0.62874514]
[1734306675832,0.00530232,3965.7,3965.6,0.07874514]
[1734306676015,3.27842232,3965.7,3965.6,0.07874514]
[1734306676214,0.7515,3965.6,3964.1,0.7504]
[1734306676411,2.52175,3965.5,3964.4,0.12456439]
[1734306676750,2.52175,3965.5,3964.5,0.07876653]
[1734306676751,2.55447863,3965.5,3964.5,0.07876653]
[1734306676916,0.39665773,3965.5,3964.6,0.07876653]
[1734306677117,0.03272863,3965.5,3964.6,0.07876653]
[1734306677317,0.03272863,3965.5,3964.8,0.7504]
[1734306677672,0.00530232,3965.7,3965.6,3.0]
[1734306677814,0.00530232,3965.7,3965.6,0.07876653]
[1734306678013,0.00530232,3965.7,3965.1,5.522]
[1734306678014,0.00530232,3965.7,3965.1,3.0]
[1734306678323,0.7515,3966.3,3965.7,0.55]
[1734306678666,0.03282499,3966.2,3965.8,0.07874563]
[1734306678961,0.7515,3966.6,3965.9,0.55]
[1734306679164,0.7515,3966.6,3966.0,0.07874563]
[1734306679328,0.03285842,3966.4,3965.9,3.55]
[1734306679526,0.03285842,3966.4,3966.0,0.07874195]
[1734306679838,0.03285842,3966.4,3966.2,0.55]
[1734306679839,0.26307526,3966.3,3966.2,0.55]
[1734306680037,0.26307526,3966.3,3965.9,3.55]
[1734306680254,0.26307526,3966.3,3966.2,0.55]
[1734306680443,0.26307526,3966.3,3966.2,0.6287386]
[1734306681288,0.26307526,3966.3,3966.2,3.6287386]
[1734306681565,0.26307526,3966.3,3966.2,4.69750221]
[1734306681743,0.26307526,3966.3,3966.2,4.77623311]
[1734306682916,0.26307526,3966.3,3966.2,4.90757863]
[1734306683314,0.26307526,3966.3,3966.2,0.0787309]
[1734306683553,0.26307526,3966.3,3965.8,3.7518]
[1734306683724,0.03370347,3966.2,3965.9,0.55]
[1734306683924,0.7601,3966.7,3966.1,3.55]
[1734306684256,0.7601,3966.7,3966.2,0.07873708]
[1734306684257,0.03423019,3966.6,3966.2,0.07873708]
[1734306684562,0.7601,3966.7,3966.3,0.07873495]
[1734306684859,0.814,3967.4,3966.5,2.5211]
[1734306685063,0.03399254,3966.6,3966.5,2.91202878]
[1734306685262,0.81096444,3967.4,3966.7,2.52098]
[1734306685422,0.81096444,3967.4,3966.8,0.07872885]
[1734306685779,0.81096444,3967.4,3966.7,2.52098]
[1734306685922,0.81096444,3967.4,3966.8,0.07872808]
[1734306686263,0.81096444,3967.4,3966.7,2.91189878]
[1734306686449,0.81096444,3967.4,3966.8,0.07872698]
[1734306686633,0.03312906,3967.3,3966.8,2.52091]
[1734306686834,0.03312906,3967.3,3966.9,2.59956787]
[1734306687063,0.03312906,3967.3,3966.9,2.91175878]
[1734306687264,0.81096444,3967.4,3966.9,2.91175878]
[1734306687468,2.5197,3968.8,3967.1,0.55]
[1734306687771,0.49890162,3968.2,3967.2,0.07871714]
[1734306687953,0.49890162,3968.2,3967.3,0.07871714]
[1734306688140,2.51978,3968.6,3967.4,0.07871714]
[1734306688341,0.8238,3968.2,3967.5,0.62871714]
[1734306688542,0.00994,3969.0,3967.5,0.62871714]
[1734306688745,0.8238,3968.8,3967.5,0.62871714]
[1734306689048,0.8238,3968.8,3967.5,1.3322741]
[1734306689354,0.8238,3968.8,3967.6,0.55]
[1734306689559,0.8238,3968.8,3967.9,0.8236]
[1734306689760,0.03258915,3968.7,3968.0,0.62871714]
[1734306689984,0.03258915,3968.7,3967.9,0.8236]
[1734306689985,0.03258915,3968.7,3968.2,0.55]
[1734306690191,0.00994,3969.0,3968.4,0.55]
[1734306690411,0.78874,3969.1,3968.4,0.55]
[1734306690692,0.50083013,3969.4,3968.5,0.02519493]
[1734306690860,0.50083013,3969.4,3968.6,0.55]
[1734306691056,0.03184451,3969.3,3968.6,0.55]
[1734306691502,0.50083013,3969.4,3968.6,0.55]
[1734306691668,0.50083013,3969.4,3968.4,0.55]
[1734306691872,0.50083013,3969.4,3968.6,0.55]
[1734306692284,0.50083013,3969.4,3968.3,0.55]
[1734306692483,0.50083013,3969.4,3968.5,0.55]
[1734306692804,0.00595922,3969.4,3968.7,2.51971]
[1734306692977,0.00595922,3969.4,3968.8,0.55]
[1734306693155,0.00595922,3969.4,3968.6,0.55]
[1734306693704,0.00595922,3969.4,3968.8,0.55]
[1734306693897,0.03184451,3969.3,3968.5,3.55]
[1734306694101,0.03184451,3969.3,3968.6,0.07868384]
[1734306694307,0.00595922,3969.4,3968.7,0.55]
[1734306694464,0.03184451,3969.3,3968.8,0.34077152]
[1734306694667,0.00595922,3969.4,3968.8,2.86040152]
[1734306694894,0.00595922,3969.4,3968.8,0.34077152]
[1734306695076,0.00595922,3969.4,3968.9,2.51955]
[1734306695684,0.00595922,3969.4,3968.9,2.86032152]
[1734306696207,0.00595922,3969.4,3969.0,0.8152]
[1734306696421,0.00595922,3969.4,3969.0,3.66662985]
[1734306697265,0.00595922,3969.4,3969.1,0.39168544]
[1734306697499,0.00595922,3969.4,3969.1,0.73084029]
[1734306697663,0.00595922,3969.4,3969.2,0.33915485]
[1734306697864,0.00595922,3969.4,3969.2,2.85852485]
[1734306698307,0.50639604,3970.2,3969.2,2.85852485]
[1734306698468,0.90947626,3970.2,3969.2,0.73084029]
[1734306698666,0.8053,3970.0,3968.8,3.0]
[1734306698899,0.8053,3970.0,3968.7,0.12693895]
[1734306699102,0.03194463,3969.9,3968.7,0.12693895]
[1734306699418,0.33561746,3969.8,3968.7,0.12693895]
[1734306699625,0.33561746,3969.8,3968.8,0.39168544]
[1734306699919,2.51911,3969.7,3968.8,0.39168544]
[1734306700082,0.7791,3969.6,3968.7,0.12693895]
[1734306700625,0.50639604,3970.2,3968.6,0.8152]
[1734306700626,0.7791,3970.0,3968.6,0.8152]
[1734306700830,0.7791,3970.0,3968.8,0.40501878]
[1734306701137,0.7791,3970.0,3968.7,0.55]
[1734306701290,0.03362765,3969.9,3968.9,3.06955]
[1734306701494,0.7791,3970.0,3969.0,2.51952]
[1734306701887,0.03362765,3969.9,3968.8,2.51963]
[1734306702091,0.03362765,3969.9,3969.0,0.55]
[1734306702341,0.03362765,3969.9,3969.1,0.7631]
[1734306702556,0.03362765,3969.9,3969.2,3.0]
[1734306702840,0.035,3970.3,3969.6,2.51909]
[1734306703021,0.0325046,3969.8,3969.4,0.55]
[1734306703222,0.0325046,3969.8,3969.6,0.55]
[1734306703538,0.0325046,3969.8,3969.3,0.36218819]
[1734306703842,0.03248792,3969.7,3969.2,0.55]
[1734306704262,2.5537,3970.3,3969.2,0.55]
[1734306704542,0.035,3970.3,3969.2,3.55]
[1734306704704,0.03257133,3970.2,3969.2,3.55]
[1734306704928,2.5537,3970.3,3969.2,3.55]
[1734306705131,0.03257133,3970.2,3969.2,3.55]
[1734306705313,0.03257133,3970.2,3968.8,0.7631]
[1734306705314,2.51922,3969.5,3968.8,0.7631]
[1734306705519,0.81153786,3969.4,3968.9,0.04]
[1734306705717,3.33081786,3969.4,3968.9,0.04]
[1734306705956,3.66389965,3969.4,3968.9,0.04]
[1734306706122,0.03243786,3969.4,3968.9,0.8454]
[1734306706329,0.7724,3969.8,3968.9,0.04]
[1734306706516,0.035,3970.3,3968.9,0.04]
[1734306706517,0.03170321,3969.7,3968.9,0.04]
[1734306706718,0.7724,3969.9,3968.9,2.51958]
[1734306706913,0.7724,3969.9,3968.8,0.8054]
[1734306707157,2.5507299,3969.8,3968.8,0.8054]
[1734306707372,0.0317199,3969.8,3968.8,0.8054]
[1734306707542,0.0317199,3969.8,3968.9,2.51958]
[1734306707931,0.0317199,3969.8,3968.8,1.56458657]
[1734306708145,0.0317199,3969.8,3968.8,4.56458657]
[1734306708464,2.51901,3969.8,3968.8,3.75918657]
[1734306708683,2.51878,3970.2,3969.1,3.0]
[1734306708866,0.03047069,3969.7,3969.0,0.55]
[1734306709027,0.7658,3970.2,3969.2,0.55]
[1734306709228,0.54210975,3970.3,3970.0,2.51887]
[1734306709430,0.54210975,3970.3,3969.6,0.7746]
[1734306709431,0.54210975,3970.3,3969.7,3.06905]
[1734306709615,0.54210975,3970.3,3969.6,0.7746]
[1734306710466,0.54210975,3970.3,3969.7,2.59773383]
[1734306710675,0.54210975,3970.3,3969.6,0.7746]
[1734306711115,0.8289,3970.2,3969.2,0.12926222]
[1734306711314,0.8289,3970.2,3969.3,3.62866509]
[1734306711564,0.02699535,3970.1,3969.5,0.55]
[1734306711792,0.54210975,3970.3,3969.7,0.55]
[1734306711917,0.54210975,3970.3,3969.1,0.92245478]
[1734306712269,0.7589,3970.2,3969.3,3.55]
[1734306712616,0.02638852,3970.1,3969.4,0.07866581]
[1734306712768,0.02638852,3970.1,3969.4,0.07866724]
[1734306712967,0.02638852,3970.1,3969.5,0.07866724]
[1734306713173,0.02638852,3970.1,3969.3,2.51933]
[1734306713174,0.02638852,3970.1,3969.6,0.07866847]
[1734306713374,0.02638852,3970.1,3969.4,2.51926]
[1734306713673,0.7589,3970.2,3969.4,2.51926]
[1734306713674,0.7589,3970.2,3969.5,0.0786648]
[1734306713976,0.02478726,3970.1,3969.6,0.0786648]
[1734306714132,0.7589,3970.2,3969.7,0.0786648]
[1734306714332,0.02478726,3970.1,3969.8,0.0786648]
[1734306714535,0.02478726,3970.1,3969.5,2.5192]
[1734306714898,0.7589,3970.2,3969.6,0.07866462]
[1734306715185,0.7589,3970.2,3969.7,0.07866462]
[1734306715329,0.7589,3970.2,3969.8,0.07866462]
[1734306715529,0.02575791,3970.1,3969.9,0.07866462]
[1734306715792,0.02575791,3970.1,3969.2,0.67585273]
[1734306716073,0.02575791,3970.1,3969.4,2.51924]
[1734306716273,0.7589,3970.2,3969.5,0.07866422]
[1734306716498,0.7589,3970.2,3969.6,0.07866422]
[1734306716700,0.7589,3970.2,3969.7,0.07866422]
[1734306716842,0.7589,3970.2,3969.8,0.07866422]
[1734306717043,0.7589,3970.2,3969.9,0.07866422]
[1734306717374,0.7589,3970.2,3969.2,0.80637486]
[1734306717375,0.7589,3970.2,3970.1,9.6097]
[1734306717576,0.7589,3970.2,3970.1,9.68836422]
[1734306717775,0.035,3970.3,3970.1,9.68836422]
[1734306717977,0.035,3970.3,3970.2,0.07866422]
[1734306718162,0.1655162,3970.5,3970.2,0.07866422]
[1734306718496,0.1655162,3970.5,3970.3,0.07866422]
[1734306718791,0.1655162,3970.5,3970.4,0.07866422]
[1734306719199,0.1655162,3970.5,3970.1,9.6097]
[1734306719371,0.1655162,3970.5,3970.4,0.07866086]
[1734306720500,0.1655162,3970.5,3970.4,9.68836086]
[1734306722270,0.1655162,3970.5,3970.4,12.20696086]
[1734306722657,2.6840862,3970.5,3970.4,12.1283]
[1734306722857,0.1655162,3970.5,3970.4,12.1283]
[1734306723063,0.50976582,3970.5,3970.4,12.1283]
[1734306723288,2.6840862,3970.5,3970.4,12.1283]
[1734306724109,0.1655162,3970.5,3970.4,12.1283]
[1734306724824,0.005,3971.0,3970.4,12.1283]
[1734306724963,0.005,3971.0,3970.5,0.07866377]
[1734306724964,2.51833,3970.9,3970.5,0.07866377]
[1734306725163,0.8324,3970.8,3970.5,2.5186]
[1734306725625,0.8324,3970.8,3970.6,0.07866463]
[1734306725908,0.8324,3970.8,3970.6,2.5185]
[1734306726207,0.8324,3970.8,3970.7,9.6097]
[1734306726513,0.8324,3970.8,3970.7,12.1281]
[1734306727790,0.8324,3970.8,3970.7,12.20675752]
[1734306729414,0.005,3971.0,3970.7,13.00755752]
[1734306729723,0.005,3971.0,3970.7,12.1281]
[1734306730223,0.005,3971.0,3970.9,9.6097]
[1734306730375,0.005,3971.0,3970.9,12.128]
[1734306731502,0.005,3971.6,3970.9,12.128]
[1734306731503,0.005,3971.6,3970.9,15.48744094]
[1734306731723,0.005,3971.6,3970.9,14.64629]
[1734306731860,2.51794,3971.5,3970.9,12.128]
[1734306732064,0.7781,3971.3,3970.9,12.128]
[1734306732414,0.7781,3971.3,3970.9,2.5183]
[1734306732729,2.5182,3971.1,3970.9,2.5183]
[1734306732868,2.84774752,3971.0,3970.9,2.5183]
[1734306733069,2.84774752,3971.0,3970.9,1.50876465]
[1734306733291,3.40934227,3971.0,3970.9,1.50876465]
[1734306733491,1.33969475,3971.0,3969.0,1.83712288]
[1734306733694,2.5184,3970.8,3969.4,2.51927]
[1734306733897,2.51845,3970.7,3969.4,2.51927]
[1734306734123,2.51845,3970.7,3969.5,0.84283628]
[1734306734269,3.29639,3971.0,3969.6,0.8307]
[1734306734463,3.29639,3971.0,3969.8,2.51901]
[1734306734667,0.7781,3971.0,3969.9,0.84310452]
[1734306734902,0.7781,3971.0,3970.0,2.51888]
[1734306735276,0.7781,3971.0,3970.0,2.5189]
[1734306735277,2.51832,3970.9,3970.0,2.5189]
[1734306735683,2.51841,3970.8,3970.0,2.5189]
[1734306735883,2.51848,3970.7,3970.0,2.5189]
[1734306736223,0.329658,3970.7,3970.0,2.5189]
[1734306736533,0.7879,3970.6,3970.0,2.5189]
[1734306736729,2.51871,3970.3,3970.0,2.5189]
[1734306737034,0.7879,3970.6,3970.0,2.5189]
[1734306737035,2.51877,3970.2,3970.0,2.5189]
[1734306737235,0.8323,3970.1,3970.0,2.5189]
[1734306737529,1.167407,3970.1,3970.0,2.5189]
[1734306738834,1.66203157,3970.1,3970.0,2.5189]
[1734306739067,1.66203157,3970.1,3968.4,3.2742]
[1734306739068,1.66203157,3970.1,3968.6,1.01902288]
[1734306739243,1.32692457,3970.1,3968.9,1.01902288]
[1734306739405,1.32692457,3970.1,3969.0,2.51951]
[1734306739744,1.32692457,3970.1,3969.1,4.63273118]
[1734306739888,0.8323,3970.1,3969.2,2.11328118]
[1734306740083,2.06964752,3971.0,3969.5,3.31447]
[1734306740084,0.7846,3970.9,3969.5,3.31447]
[1734306740278,0.7846,3970.9,3969.6,0.84538737]
[1734306740279,0.7846,3970.8,3969.6,0.84538737]
[1734306740498,0.7846,3970.0,3969.0,1.01902288]
[1734306740683,0.7846,3970.0,3969.1,0.84532854]
[1734306740920,0.7846,3970.0,3968.9,1.01902288]
[1734306741133,0.7846,3969.9,3968.9,0.84540512]
[1734306741433,0.7846,3969.9,3968.6,4.01902288]
[1734306741434,0.49331564,3969.6,3968.6,4.01902288]
[1734306741753,0.49331564,3969.6,3968.4,1.01902288]
[1734306741754,2.06964752,3969.3,3968.4,1.01902288]
[1734306742032,2.06964752,3969.3,3968.1,2.03804577]
[1734306742033,0.7846,3969.2,3968.1,1.01902288]
[1734306742333,1.32195275,3969.2,3968.1,1.01902288]
[1734306742539,0.7846,3969.2,3968.2,0.84586347]
[1734306742678,0.7846,3969.2,3967.9,0.7953]
[1734306742892,2.51902,3969.8,3967.6,1.01902288]
[1734306742893,2.06964752,3968.5,3967.6,1.01902288]
[1734306743097,0.8083,3968.0,3967.4,1.01902288]
[1734306743347,0.8083,3968.0,3967.1,1.01902288]
[1734306743553,0.8083,3968.0,3966.9,2.52082]
[1734306744346,0.7586,3967.6,3966.2,1.01902288]
[1734306744567,0.7586,3967.6,3965.9,0.7515]
[1734306744849,0.7586,3967.6,3966.2,3.54030288]
[1734306745051,0.7586,3967.6,3966.8,2.5209]
[1734306745343,0.7586,3967.6,3967.0,2.52077]
[1734306745709,0.8157,3968.5,3967.5,2.52044]
[1734306746301,0.8157,3968.5,3967.0,3.12936876]
[1734306746302,0.8157,3968.5,3967.7,2.52031]
[1734306746496,0.8157,3968.5,3967.1,0.814]
[1734306746726,0.33827355,3968.4,3967.2,3.0]
[1734306747046,0.33827355,3968.4,3967.2,5.52063]
[1734306747227,0.33827355,3968.4,3967.3,2.52058]
[1734306747432,0.8157,3968.5,3967.5,2.52045]
[1734306747913,0.8157,3968.5,3967.2,2.52063]
[1734306748323,0.8312,3968.0,3967.1,2.52072]
[1734306748643,0.8312,3968.0,3967.3,2.52059]
[1734306748945,0.8312,3968.0,3966.5,3.7786]
[1734306749114,0.8312,3968.9,3967.7,0.7786]
[1734306749498,0.8312,3969.7,3968.1,0.55]
[1734306749698,0.8312,3969.7,3969.4,2.51923]
[1734306749898,2.06964752,3970.6,3969.4,2.51923]
[1734306749899,0.8312,3970.5,3969.4,2.51923]
[1734306750101,1.03816475,3970.5,3969.7,2.51904]
[1734306750345,1.03816475,3970.5,3969.8,2.51896]
[1734306750586,1.03816475,3970.5,3969.0,2.51946]
[1734306750587,0.49717103,3970.1,3969.0,2.51946]
[1734306750947,0.49717103,3970.1,3969.5,2.51918]
[1734306751845,0.49717103,3970.1,3969.0,2.51946]
[1734306752498,0.49717103,3970.1,3969.1,2.51946]
[1734306752794,0.49717103,3970.1,3969.1,2.51941]
[1734306752952,0.49717103,3970.1,3969.0,2.51951]
[1734306753348,0.8067,3970.0,3968.8,3.0]
[1734306753671,0.3822701,3969.9,3968.8,3.0]
[1734306754256,0.8067,3970.0,3969.3,2.51932]
[1734306754491,0.8067,3970.0,3969.5,2.51918]
[1734306755906,0.751,3970.4,3969.8,2.51901]
[1734306756418,0.751,3970.4,3969.6,2.51913]
[1734306758560,0.751,3970.4,3969.3,0.79]
[1734306758743,0.751,3970.4,3969.4,2.51926]
[1734306759054,0.751,3970.4,3969.6,2.51913]
[1734306759462,0.751,3970.4,3969.3,2.5193]
[1734306759645,0.751,3970.4,3969.1,2.51944]
[1734306759842,0.32696,3970.3,3969.2,3.0]
[1734306760013,0.8293,3970.1,3968.9,3.0]
[1734306760354,0.8293,3969.5,3967.9,0.8301]
[1734306760581,0.8293,3969.5,3968.4,2.51989]
[1734306760869,2.51927,3969.4,3968.1,2.52007]
[1734306761153,0.8293,3969.0,3967.8,2.52025]
[1734306761355,0.8293,3969.0,3967.9,2.52021]
[1734306761662,0.8293,3969.0,3967.6,2.52041]
[1734306761846,0.8293,3969.0,3968.3,2.5199]
[1734306762022,0.8293,3969.0,3968.3,2.51991]
[1734306762355,0.8293,3969.0,3967.5,0.8301]
[1734306762652,0.8293,3969.0,3968.5,2.51982]
[1734306762806,0.8293,3969.0,3968.2,2.51998]
[1734306763312,2.51872,3970.3,3967.4,0.13223604]
[1734306763313,0.8117,3969.2,3967.4,2.52052]
[1734306763541,0.8117,3969.1,3967.5,2.52044]
[1734306763865,2.5196,3968.9,3967.5,2.52044]
[1734306764007,0.8027,3968.7,3967.5,2.52044]
[1734306764365,0.4933249,3968.6,3967.5,2.52044]
[1734306764513,0.4933249,3968.6,3967.2,2.52061]
[1734306764709,0.8063,3968.4,3967.2,2.52061]
[1734306765434,0.8063,3968.4,3966.7,0.8072]
[1734306765695,0.8063,3968.4,3966.6,0.13147851]
[1734306765696,0.8063,3967.9,3966.3,0.7845]
[1734306765846,3.32654,3967.9,3966.7,2.52098]
[1734306766007,3.32654,3967.9,3966.4,2.52113]
[1734306766210,3.32654,3967.9,3966.3,0.7845]
[1734306766421,0.8063,3967.5,3966.3,2.52119]
[1734306766619,0.8063,3967.5,3965.8,0.7845]
[1734306766822,0.76,3967.1,3965.8,0.7845]
[1734306767170,2.5208,3967.0,3965.6,2.52165]
[1734306767463,0.5143624,3967.5,3964.7,0.8239]
[1734306767464,0.8221,3966.5,3964.7,0.8239]
[1734306767609,0.8221,3966.4,3964.4,1.007979]
[1734306767808,0.8221,3966.4,3964.5,2.52233]
[1734306767809,0.8221,3965.8,3964.5,2.52233]
[1734306768312,0.8221,3965.8,3964.2,2.52254]
[1734306768513,2.52164,3965.7,3964.2,2.52254]
[1734306768713,1.074264,3965.6,3964.1,2.52261]
[1734306769029,1.074264,3965.6,3962.8,2.28664734]
[1734306769030,0.8221,3964.2,3961.8,1.78992288]
[1734306769367,0.8221,3964.2,3961.8,0.7709]
[1734306769604,0.8221,3964.2,3962.7,2.52351]
[1734306769805,0.8221,3964.2,3961.8,0.7709]
[1734306769806,1.156566,3964.2,3962.3,2.52376]
[1734306769953,2.52267,3964.1,3961.8,0.89924094]
[1734306770152,0.8221,3964.2,3962.9,2.52337]
[1734306770366,0.8221,3964.2,3962.4,3.0]
[1734306770602,1.156558,3964.2,3962.4,3.0]
[1734306770808,0.8221,3964.2,3962.5,2.52364]
[1734306771041,0.8221,3964.2,3962.0,2.66163849]
[1734306771163,0.502164,3965.6,3962.6,0.7883]
[1734306771164,0.252164,3965.6,3962.6,0.7883]
[1734306771369,8.15759575,3966.4,3963.3,0.55]
[1734306771567,2.52151,3965.9,3964.2,2.52254]
[1734306771802,5.15791575,3965.9,3964.3,2.52245]
[1734306771988,0.252151,3965.8,3964.3,2.52245]
[1734306772195,0.252151,3965.8,3963.6,0.12792485]
[1734306772391,0.49329298,3965.7,3964.6,2.5223]
[1734306772601,2.63640575,3965.9,3964.2,3.0]
[1734306772779,6.35112921,3966.8,3964.9,2.52208]
[1734306772780,2.63640575,3966.4,3964.9,2.52208]
[1734306773120,2.63640575,3966.4,3965.0,2.52202]
[1734306773289,0.49858799,3966.0,3964.5,3.0]
[1734306773624,0.49858799,3966.0,3965.0,2.52204]
[1734306773778,0.49858799,3966.0,3965.2,2.52192]
[1734306773984,0.49858799,3966.0,3965.3,2.52184]
[1734306774184,0.777,3965.9,3965.3,2.52184]
[1734306774597,0.777,3965.9,3964.7,2.52225]
[1734306774598,0.777,3965.9,3965.7,2.5216]
[1734306774779,0.49964699,3966.6,3965.7,2.5216]
[1734306775010,2.63640575,3967.4,3965.4,0.02521697]
[1734306775227,3.14669318,3967.4,3966.2,2.52125]
[1734306775442,0.31466932,3967.3,3966.2,2.52125]
[1734306775793,0.31466932,3967.3,3965.7,3.0]
[1734306775987,0.31466932,3967.3,3966.2,2.52124]
[1734306776242,0.31466932,3967.3,3965.3,3.0]
[1734306776391,0.31466932,3967.3,3966.4,2.52116]
[1734306776591,0.34613625,3967.2,3966.4,2.52116]
[1734306777146,0.34613625,3967.2,3966.2,2.52126]
[1734306777491,0.34613625,3967.2,3965.7,0.02521336]
[1734306777747,2.63640575,3967.9,3966.6,2.52102]
[1734306778037,0.5692,3967.8,3966.6,2.52102]
[1734306778847,0.4994066,3967.7,3967.0,2.52075]
[1734306778988,0.5692,3967.8,3967.0,2.52075]
[1734306779394,0.5692,3967.8,3966.2,2.52125]
[1734306779395,0.5692,3967.8,3966.6,2.52099]
[1734306779620,0.5692,3967.8,3966.8,2.52089]
[1734306780592,1.07430114,3967.8,3966.0,2.52143]
[1734306780834,1.07430114,3967.8,3965.7,0.13318704]
[1734306781075,1.07430114,3967.8,3965.4,0.771]
[1734306781076,2.63640575,3967.5,3965.6,3.0]
[1734306781288,0.5692,3967.4,3966.2,2.52126]
[1734306781470,0.32056058,3967.3,3966.3,2.5212]
[1734306781872,0.32056058,3967.3,3965.8,3.0]
[1734306782032,0.5692,3967.4,3965.8,3.0]
[1734306782233,0.5692,3967.4,3966.4,2.52111]
[1734306782536,0.5692,3967.4,3966.2,2.52127]
[1734306782762,0.5692,3967.4,3966.0,3.0]
[1734306782968,0.5692,3967.4,3966.4,2.52116]
[1734306783172,0.5692,3967.4,3966.1,2.52134]
[1734306783495,0.5692,3967.4,3965.8,3.0]
[1734306783496,0.308965,3967.3,3966.3,2.52119]
[1734306783778,0.5692,3967.4,3966.3,2.52119]
[1734306784083,0.5692,3967.4,3965.3,3.0]
[1734306784084,2.52075,3967.1,3965.0,2.52206]
[1734306784268,0.5692,3966.9,3964.7,2.52223]
[1734306784508,0.5692,3966.6,3964.6,0.13122441]
[1734306784683,0.5692,3966.6,3965.8,2.52149]
[1734306784855,0.5692,3966.6,3965.5,2.52171]